bitfinex/quotes_SOLUSD_20240625
["timestamp","ask_amount","ask_price","bid_price","bid_amount"]
[1719311156119,100.0,137.88,137.85,26.54]
[1719311156317,100.0,137.9,137.85,26.54]
[1719311157919,100.0,137.9,137.86,45.0]
[1719311158235,100.0,137.92,137.86,45.0]
[1719311161121,100.0,137.88,137.85,26.54]
[1719311164024,200.0,137.92,137.85,26.54]
[1719311164209,200.0,137.92,137.83,6.3858]
[1719311164210,100.0,137.92,137.88,26.54]
[1719311164520,100.0,137.94,137.88,26.54]
[1719311164725,100.0,137.94,137.89,45.0]
[1719311167725,100.0,137.91,137.88,26.54]
[1719311171627,100.0,137.88,137.83,6.3858]
[1719311171836,100.0,137.88,137.85,26.54]
[1719311172910,200.0,137.88,137.85,26.54]
[1719311175919,100.0,137.9,137.85,26.54]
[1719311176111,100.0,137.92,137.88,26.54]
[1719311176315,206.3218,137.94,137.88,26.54]
[1719311176735,15.5578,137.95,137.89,45.0]
[1719311176941,15.5578,137.95,137.91,26.54]
[1719311177420,100.0,137.94,137.91,26.54]
[1719311178724,15.5578,137.95,137.91,26.54]
[1719311180118,11.88098685,137.97,137.91,26.54]
[1719311180324,100.0,137.97,137.94,26.54]
[1719311181843,100.0,137.96,137.94,26.54]
[1719311182138,100.0,137.95,137.94,26.54]
[1719311182433,100.0,137.95,137.91,26.54]
[1719311183320,100.0,137.96,137.89,45.0]
[1719311183321,100.0,137.93,137.89,45.0]
[1719311183635,100.0,137.93,137.9,26.54]
[1719311185325,100.0,137.96,137.9,26.54]
[1719311187837,0.34,137.98,137.93,26.54]
[1719311188021,115.6674,137.99,137.93,26.54]
[1719311188022,215.6674,137.99,137.93,26.54]
[1719311188927,100.0,137.97,137.93,26.54]
[1719311190231,206.6303,138.01,137.96,26.54]
[1719311190427,200.0,138.01,137.96,26.54]
[1719311190829,115.2995,138.03,137.96,26.54]
[1719311191128,100.0,138.04,137.99,26.54]
[1719311191831,100.0,138.02,137.99,26.54]
[1719311195446,100.0,138.0,137.94,15.9295]
[1719311195628,100.0,138.0,137.96,26.54]
[1719311196030,100.0,137.98,137.96,26.54]
[1719311197347,100.0,138.0,137.96,26.54]
[1719311198624,100.0,138.02,137.96,26.54]
[1719311199433,100.0,138.03,137.96,26.54]
[1719311199639,100.0,138.02,137.96,26.54]
[1719311201150,100.0,137.99,137.96,26.54]
[1719311202129,100.0,137.95,137.91,6.0492]
[1719311202329,100.0,137.95,137.91,26.54]
[1719311209052,100.0,137.95,137.88,6.2203]
[1719311209241,100.0,137.95,137.91,26.54]
[1719311216666,100.0,137.95,137.94,8.84]
[1719311217651,100.0,137.9,137.84,15.389]
[1719311217853,100.0,137.9,137.89,8.84]
[1719311219278,100.0,137.94,137.89,17.68]
[1719311219593,100.0,137.94,137.93,8.84]
[1719311220654,100.0,137.94,137.89,26.54]
[1719311221269,200.0,137.97,137.92,26.54]
[1719311221768,100.0,137.95,137.92,26.54]
[1719311222656,200.0,137.95,137.92,26.54]
[1719311222859,100.0,137.93,137.92,26.54]
[1719311223251,100.0,137.93,137.89,26.54]
[1719311226068,100.0,137.91,137.89,26.54]
[1719311226269,100.0,137.91,137.87,26.54]
[1719311226461,100.0,137.91,137.85,45.0]
[1719311226662,100.0,137.91,137.87,26.54]
[1719311227057,100.0,137.89,137.84,15.389]
[1719311227277,100.0,137.89,137.86,26.54]
[1719311234265,100.0,137.9,137.86,26.54]
[1719311234266,100.0,137.87,137.86,26.54]
[1719311234469,200.0,137.87,137.84,26.54]
[1719311234669,100.0,137.85,137.84,26.54]
[1719311235468,100.0,137.85,137.77,16.5998]
[1719311235469,100.0,137.85,137.81,26.54]
[1719311235784,100.0,137.83,137.77,16.5998]
[1719311235971,100.0,137.83,137.79,26.54]
[1719311236985,100.0,137.81,137.79,26.54]
[1719311237572,100.0,137.79,137.76,336.10403125]
[1719311240583,100.0,137.79,137.76,309.56403125]
[1719311240786,100.0,137.79,137.76,336.10403125]
[1719311240993,200.0,137.77,137.76,309.56403125]
[1719311241683,200.34,137.77,137.76,309.56403125]
[1719311242183,200.0,137.77,137.76,309.56403125]
[1719311244286,200.34,137.77,137.76,309.56403125]
[1719311246784,245.34,137.77,137.76,309.56403125]
[1719311246988,200.34,137.77,137.76,309.56403125]
[1719311251488,200.34,137.77,137.76,292.89743125]
[1719311251795,252.5984,137.77,137.76,276.23083125]
[1719311252187,245.34,137.77,137.76,276.23083125]
[1719311253400,200.17,137.77,137.76,276.23083125]
[1719311253575,100.0,137.77,137.76,276.23083125]
[1719311253772,200.0,137.77,137.76,276.23083125]
[1719311255503,200.34,137.77,137.76,276.23083125]
[1719311257311,274.8064,137.77,137.76,252.89763125]
[1719311257499,259.1148,137.77,137.76,226.56703125]
[1719311258197,206.8564,137.77,137.76,226.56703125]
[1719311259305,259.1148,137.77,137.76,226.56703125]
[1719311264210,270.99578685,137.77,137.76,226.56703125]
[1719311266429,336.46578685,137.77,137.76,226.20703125]
[1719311266604,388.13872302,137.77,137.76,219.54043125]
[1719311266799,414.77872302,137.77,137.76,87.79043125]
[1719311268523,421.80364758,137.77,137.76,87.79043125]
[1719311268821,404.04364758,137.77,137.76,87.79043125]
[1719311270596,382.22364758,137.77,137.76,87.79043125]
[1719311271703,355.58364758,137.77,137.76,87.79043125]
[1719311273326,377.40364758,137.77,137.76,87.43043125]
[1719311273699,636.30364758,137.77,137.76,87.43043125]
[1719311274929,291.58071141,137.77,137.76,87.43043125]
[1719311275227,485.06431141,137.77,137.76,87.43043125]
[1719311275426,458.9,137.77,137.76,87.43043125]
[1719311275808,466.1584,137.77,137.76,87.43043125]
[1719311276612,511.4984,137.77,137.76,87.43043125]
[1719311276811,580.1484,137.77,137.76,87.07043125]
[1719311277341,511.4984,137.77,137.76,87.07043125]
[1719311279128,536.4984,137.77,137.76,87.07043125]
[1719311279322,511.4984,137.77,137.76,87.07043125]
[1719311281739,536.4984,137.77,137.76,87.07043125]
[1719311281908,580.1484,137.77,137.76,87.07043125]
[1719311282239,601.9684,137.77,137.76,86.89043125]
[1719311282536,615.02532456,137.77,137.76,86.89043125]
[1719311282724,200.0,137.65,137.64,6.4119]
[1719311283039,200.0,137.65,137.63,15.0945]
[1719311283504,100.0,137.59,137.58,15.5628]
[1719311283704,100.0,137.6,137.58,15.5628]
[1719311283903,200.0,137.6,137.58,15.5628]
[1719311287227,0.17,137.59,137.58,15.5628]
[1719311287422,100.0,137.55,137.54,22.6701]
[1719311287644,200.0,137.55,137.54,22.6701]
[1719311288544,100.0,137.55,137.54,22.6701]
[1719311288731,200.0,137.57,137.54,22.6701]
[1719311289627,100.0,137.61,137.54,49.3101]
[1719311289815,100.0,137.59,137.54,49.3101]
[1719311291218,100.0,137.61,137.54,49.3101]
[1719311291420,100.0,137.61,137.57,26.64]
[1719311292559,200.0,137.61,137.57,26.64]
[1719311294735,100.0,137.61,137.57,26.64]
[1719311295356,200.0,137.61,137.57,26.64]
[1719311296246,100.0,137.61,137.57,26.64]
[1719311296450,200.0,137.63,137.57,26.64]
[1719311296747,200.0,137.55,137.54,16.1565]
[1719311296956,200.0,137.55,137.51,48.0607]
[1719311297739,100.0,137.53,137.51,21.4207]
[1719311298236,200.0,137.55,137.51,21.4207]
[1719311298638,200.0,137.57,137.51,21.4207]
[1719311298857,100.0,137.58,137.52,26.64]
[1719311299155,100.0,137.59,137.52,26.64]
[1719311299324,100.0,137.6,137.52,26.64]
[1719311299846,100.0,137.6,137.53,45.0]
[1719311300759,100.0,137.6,137.55,26.64]
[1719311301257,100.0,137.59,137.55,26.64]
[1719311301765,100.0,137.57,137.55,26.64]
[1719311301947,100.0,137.55,137.52,26.64]
[1719311302540,200.0,137.55,137.51,21.4207]
[1719311303856,100.0,137.57,137.51,21.4207]
[1719311304228,100.0,137.57,137.52,45.0]
[1719311304739,100.0,137.63,137.52,45.0]
[1719311304948,100.0,137.63,137.56,21.8311]
[1719311305582,100.0,137.62,137.56,21.8311]
[1719311306161,100.0,137.6,137.56,21.8311]
[1719311308935,100.0,137.63,137.56,21.8311]
[1719311309159,100.0,137.63,137.57,45.0]
[1719311309865,100.0,137.64,137.57,45.0]
[1719311310167,200.0,137.65,137.57,45.0]
[1719311310357,100.0,137.65,137.57,45.0]
[1719311310656,200.0,137.63,137.57,45.0]
[1719311310995,200.0,137.61,137.56,21.8311]
[1719311311465,100.0,137.61,137.56,21.8311]
[1719311312364,200.0,137.63,137.57,45.0]
[1719311312532,100.0,137.63,137.57,45.0]
[1719311313160,100.0,137.65,137.57,45.0]
[1719311313363,200.0,137.65,137.57,45.0]
[1719311313546,200.0,137.65,137.58,0.43442361]
[1719311314236,100.0,137.63,137.58,0.43442361]
[1719311314435,200.0,137.63,137.57,45.0]
[1719311314930,100.0,137.65,137.57,45.0]
[1719311315133,100.0,137.66,137.58,0.17]
[1719311315336,100.0,137.67,137.59,15.7351]
[1719311315564,100.0,137.67,137.61,6.6501]
[1719311315867,100.0,137.67,137.61,8.09896479]
[1719311316360,100.0,137.69,137.62,45.0]
[1719311317257,100.0,137.7,137.62,45.0]
[1719311317461,100.0,137.69,137.62,45.0]
[1719311317645,100.0,137.68,137.62,45.0]
[1719311317962,100.0,137.66,137.62,45.0]
[1719311318506,100.0,137.66,137.61,6.6501]
[1719311318683,100.0,137.65,137.61,6.6501]
[1719311318853,100.0,137.64,137.61,6.6501]
[1719311319039,100.0,137.62,137.59,15.7351]
[1719311321044,100.0,137.62,137.57,6.1018]
[1719311321952,100.0,137.6,137.57,6.1018]
[1719311323959,100.0,137.61,137.57,6.1018]
[1719311324268,200.0,137.61,137.57,6.1018]
[1719311324475,200.0,137.63,137.57,6.1018]
[1719311324652,100.0,137.63,137.57,6.1018]
[1719311324844,100.0,137.67,137.58,20.17]
[1719311325050,100.0,137.67,137.59,45.17]
[1719311325249,200.0,137.67,137.6,0.17]
[1719311325440,200.0,137.67,137.59,45.17]
[1719311325441,200.0,137.65,137.59,45.0]
[1719311325763,100.0,137.63,137.57,6.1018]
[1719311328676,100.0,137.6,137.57,6.1018]
[1719311329751,100.0,137.57,137.53,31.11]
[1719311329950,100.0,137.57,137.52,15.3614]
[1719311331177,100.0,137.63,137.52,15.3614]
[1719311331355,100.0,137.65,137.56,31.11]
[1719311331551,200.0,137.65,137.56,31.11]
[1719311331864,200.0,137.63,137.57,45.0]
[1719311332069,200.0,137.65,137.57,45.0]
[1719311332370,100.0,137.63,137.57,45.0]
[1719311332671,200.0,137.63,137.57,45.0]
[1719311334072,100.0,137.61,137.56,31.11]
[1719311334275,200.0,137.63,137.56,31.11]
[1719311335651,200.0,137.61,137.56,31.11]
[1719311336288,100.0,137.61,137.56,31.11]
[1719311336574,200.0,137.61,137.56,31.11]
[1719311336951,100.0,137.61,137.56,31.11]
[1719311337289,200.0,137.61,137.56,31.11]
[1719311337982,0.17,137.64,137.56,31.11]
[1719311337983,100.0,137.62,137.56,31.11]
[1719311338159,200.0,137.63,137.56,31.11]
[1719311338975,100.0,137.63,137.56,31.11]
[1719311339183,200.0,137.63,137.56,31.11]
[1719311340366,100.0,137.63,137.57,45.0]
[1719311340686,200.0,137.63,137.57,45.0]
[1719311341068,100.0,137.6,137.56,31.11]
[1719311341454,100.0,137.59,137.54,16.63]
[1719311343081,100.0,137.58,137.54,16.63]
[1719311343572,100.0,137.57,137.54,16.63]
[1719311344181,100.0,137.58,137.54,16.63]
[1719311347158,100.0,137.61,137.54,16.63]
[1719311347358,100.0,137.62,137.55,45.0]
[1719311347563,100.0,137.6,137.55,45.0]
[1719311348457,100.0,137.59,137.54,16.63]
[1719311349869,100.0,137.6,137.54,16.63]
[1719311350377,100.0,137.6,137.55,45.0]
[1719311350684,100.0,137.6,137.58,26.66]
[1719311353365,100.0,137.58,137.54,16.63]
[1719311353669,100.0,137.58,137.55,26.66]
[1719311355060,100.0,137.6,137.55,26.66]
[1719311355497,100.0,137.6,137.58,26.66]
[1719311356395,200.0,137.63,137.58,26.66]
[1719311361566,100.0,137.61,137.58,26.66]
[1719311363691,200.0,137.61,137.58,26.66]
[1719311364964,100.0,137.59,137.54,16.63]
[1719311365197,100.0,137.59,137.57,26.66]
[1719311367101,100.0,137.57,137.54,16.63]
[1719311367264,100.0,137.57,137.55,26.66]
[1719311368596,200.0,137.6,137.55,26.66]
[1719311368919,100.0,137.6,137.55,26.66]
[1719311369801,100.0,137.59,137.55,26.66]
[1719311370806,100.0,137.6,137.55,26.66]
[1719311371473,100.0,137.62,137.55,26.66]
[1719311371903,100.0,137.61,137.55,26.66]
[1719311372079,100.0,137.62,137.55,26.66]
[1719311372278,100.0,137.62,137.58,26.66]
[1719311373302,100.0,137.59,137.58,26.66]
[1719311376004,100.0,137.59,137.54,16.63]
[1719311376189,100.0,137.59,137.58,26.66]
[1719311376694,200.0,137.64,137.58,26.66]
[1719311376875,200.0,137.66,137.61,26.66]
[1719311378201,100.0,137.64,137.61,26.66]
[1719311379488,200.0,137.64,137.61,26.66]
[1719311380215,100.0,137.66,137.61,26.66]
[1719311380515,100.0,137.64,137.61,26.66]
[1719311380718,200.0,137.64,137.61,26.66]
[1719311381703,100.0,137.62,137.6,16.091]
[1719311382206,100.0,137.62,137.59,6.3934]
[1719311383392,200.0,137.64,137.59,6.3934]
[1719311384392,100.0,137.64,137.61,26.66]
[1719311386407,100.0,137.65,137.61,26.66]
[1719311387709,200.0,137.65,137.61,26.66]
[1719311392094,100.0,137.65,137.61,26.66]
[1719311392397,200.0,137.67,137.61,26.66]
[1719311392714,100.0,137.67,137.64,26.66]
[1719311393530,200.0,137.67,137.64,26.66]
[1719311395700,100.0,137.65,137.64,26.66]
[1719311396414,200.0,137.65,137.59,6.3934]
[1719311396622,100.0,137.63,137.6,45.0]
[1719311396803,100.0,137.63,137.61,26.66]
[1719311398105,200.0,137.65,137.61,26.66]
[1719311398619,100.0,137.63,137.61,26.66]
[1719311398807,200.0,137.63,137.61,26.66]
[1719311399208,100.0,137.63,137.61,26.66]
[1719311400107,200.0,137.65,137.61,26.66]
[1719311400311,100.0,137.65,137.61,26.66]
[1719311400828,200.0,137.65,137.61,26.66]
[1719311401896,100.0,137.63,137.61,26.66]
[1719311402097,200.0,137.63,137.6,26.66]
[1719311402914,100.0,137.61,137.6,26.66]
[1719311403424,100.0,137.61,137.57,42.8618]
[1719311404194,100.0,137.63,137.6,26.66]
[1719311404411,200.0,137.63,137.6,26.66]
[1719311408544,100.0,137.61,137.58,26.66]
[1719311408832,100.0,137.59,137.57,16.2018]
[1719311409325,100.0,137.57,137.53,16.1557]
[1719311409519,100.0,137.55,137.53,42.8157]
[1719311409720,100.0,137.55,137.5,29.11999]
[1719311409721,100.0,137.54,137.5,29.11999]
[1719311409912,100.0,137.54,137.5,26.66]
[1719311409913,100.0,137.53,137.5,26.66]
[1719311410606,100.0,137.54,137.5,26.66]
[1719311411103,100.0,137.53,137.5,26.66]
[1719311413110,100.0,137.55,137.5,26.66]
[1719311413608,100.0,137.59,137.53,26.66]
[1719311413810,100.0,137.59,137.54,45.0]
[1719311414020,100.0,137.59,137.56,26.66]
[1719311414523,100.0,137.59,137.48,15.3875]
[1719311414524,100.0,137.58,137.48,15.3875]
[1719311414710,100.0,137.57,137.49,20.34]
[1719311415034,100.0,137.57,137.53,26.66]
[1719311419314,100.0,137.55,137.49,65.34]
[1719311419519,100.0,137.57,137.52,26.66]
[1719311419719,100.0,137.57,137.53,45.0]
[1719311420110,100.0,137.57,137.52,26.66]
[1719311420428,200.0,137.57,137.53,45.0]
[1719311420633,200.0,137.57,137.52,26.66]
[1719311421319,100.0,137.57,137.52,26.66]
[1719311422726,100.0,137.57,137.56,8.89]
[1719311424331,100.0,137.57,137.49,20.17]
[1719311424526,100.0,137.57,137.56,8.89]
[1719311425632,100.0,137.57,137.5,45.17]
[1719311425633,200.0,137.57,137.5,45.17]
[1719311425830,200.0,137.57,137.5,45.0]
[1719311425831,100.0,137.55,137.5,45.0]
[1719311426012,100.0,137.55,137.54,8.89]
[1719311426327,100.0,137.53,137.5,45.0]
[1719311426533,100.0,137.53,137.52,8.89]
[1719311427905,100.0,137.55,137.52,8.89]
[1719311428105,100.0,137.55,137.54,8.89]
[1719311432320,100.0,137.55,137.48,50.9475]
[1719311432321,100.0,137.53,137.48,50.9475]
[1719311432528,100.0,137.51,137.48,35.56]
[1719311432830,100.0,137.51,137.5,8.89]
[1719311433035,100.0,137.51,137.44,15.0039]
[1719311433340,100.0,137.51,137.5,8.89]
[1719311433542,100.0,137.51,137.44,15.0039]
[1719311433716,100.0,137.51,137.5,8.89]
[1719311434724,100.0,137.53,137.5,8.89]
[1719311435035,100.0,137.53,137.52,8.89]
[1719311436133,100.0,137.51,137.48,35.56]
[1719311436434,100.0,137.51,137.5,8.89]
[1719311437521,100.0,137.52,137.5,8.89]
[1719311437719,100.0,137.52,137.51,8.89]
[1719311445252,100.0,137.52,137.48,35.56]
[1719311445428,100.0,137.52,137.51,8.89]
[1719311447059,111.5483313,137.56,137.51,8.89]
[1719311447232,100.0,137.56,137.55,8.89]
[1719311450546,6.6252,137.58,137.5,15.1374]
[1719311450547,100.0,137.53,137.5,15.1374]
[1719311450750,100.0,137.53,137.52,8.89]
[1719311451858,6.6252,137.58,137.48,35.56]
[1719311451859,100.0,137.51,137.48,35.56]
[1719311452362,100.0,137.51,137.5,8.89]
[1719311452853,100.0,137.53,137.5,8.89]
[1719311453038,100.0,137.53,137.52,8.89]
[1719311453455,200.0,137.51,137.48,35.56]
[1719311453638,200.0,137.51,137.5,8.89]
[1719311454654,100.0,137.49,137.44,6.6442]
[1719311454955,100.0,137.49,137.48,8.89]
[1719311455339,200.0,137.51,137.48,17.78]
[1719311455542,200.0,137.51,137.5,8.89]
[1719311457459,100.0,137.49,137.44,6.6442]
[1719311457648,100.0,137.49,137.48,8.89]
[1719311459681,100.0,137.52,137.48,17.78]
[1719311459973,100.0,137.52,137.51,8.89]
[1719311460842,100.17,137.52,137.51,8.89]
[1719311461083,100.34,137.52,137.51,8.89]
[1719311461463,200.0,137.55,137.48,50.6816]
[1719311461661,200.0,137.57,137.54,8.89]
[1719311461868,200.0,137.57,137.56,8.89]
[1719311463675,100.0,137.57,137.56,8.89]
[1719311463974,100.0,137.59,137.56,8.89]
[1719311464146,100.0,137.59,137.58,8.89]
[1719311465351,100.0,137.61,137.58,8.89]
[1719311465553,100.0,137.61,137.6,8.89]
[1719311466542,100.0,137.62,137.6,8.89]
[1719311466744,100.0,137.62,137.61,8.89]
[1719311467161,200.0,137.67,137.61,8.89]
[1719311467352,200.0,137.67,137.66,8.89]
[1719311468666,200.0,137.67,137.61,26.65]
[1719311468667,100.0,137.65,137.61,26.65]
[1719311469355,200.0,137.65,137.61,26.65]
[1719311470889,200.0,137.65,137.55,33.2135]
[1719311470890,200.0,137.65,137.6,26.65]
[1719311471048,100.0,137.63,137.6,26.65]
[1719311472087,100.0,137.65,137.6,26.65]
[1719311472782,200.0,137.65,137.6,26.65]
[1719311474252,100.0,137.63,137.6,26.65]
[1719311474455,200.0,137.63,137.6,26.65]
[1719311474761,100.0,137.61,137.57,26.65]
[1719311475775,200.0,137.61,137.57,26.65]
[1719311477951,200.0,137.61,137.55,6.5635]
[1719311477952,100.0,137.7,137.6,26.65]
[1719311478150,200.0,137.72,137.65,26.65]
[1719311478384,200.0,137.72,137.61,45.34]
[1719311478385,100.0,137.72,137.68,26.65]
[1719311479770,100.0,137.72,137.69,45.0]
[1719311479988,100.0,137.74,137.69,45.0]
[1719311480194,100.0,137.72,137.69,45.0]
[1719311480383,200.0,137.72,137.66,22.6304]
[1719311480594,200.0,137.72,137.67,71.65]
[1719311480795,100.0,137.7,137.67,26.65]
[1719311481496,22.1561,137.78,137.67,26.65]
[1719311481497,100.0,137.68,137.67,26.65]
[1719311481682,100.0,137.68,137.62,22.0062]
[1719311481884,200.0,137.71,137.65,26.65]
[1719311482481,222.1561,137.78,137.68,26.65]
[1719311482683,222.1561,137.78,137.72,26.65]
[1719311483297,100.0,137.78,137.72,26.65]
[1719311483506,100.0,137.8,137.73,45.0]
[1719311483807,100.0,137.78,137.73,45.0]
[1719311483973,200.0,137.78,137.73,45.0]
[1719311484481,200.0,137.78,137.72,26.65]
[1719311484804,200.0,137.73,137.66,21.6273]
[1719311485014,200.0,137.73,137.68,26.65]
[1719311485186,100.0,137.75,137.68,26.65]
[1719311485387,200.0,137.77,137.71,26.65]
[1719311485584,100.0,137.79,137.71,26.65]
[1719311485896,200.0,137.79,137.71,26.65]
[1719311487103,200.0,137.79,137.66,21.6273]
[1719311487291,200.0,137.79,137.67,65.34]
[1719311487480,100.0,137.76,137.72,26.6]
[1719311487686,100.0,137.74,137.69,26.6]
[1719311488195,200.0,137.74,137.69,26.6]
[1719311488498,100.0,137.72,137.69,26.6]
[1719311490681,100.0,137.72,137.68,26.6]
[1719311492812,100.0,137.68,137.63,16.2845]
[1719311492990,100.0,137.68,137.64,26.6]
[1719311495309,100.0,137.64,137.6,15.397]
[1719311495504,100.0,137.64,137.6,41.997]
[1719311500391,100.0,137.64,137.6,26.6]
[1719311501809,100.0,137.66,137.61,45.0]
[1719311502520,200.0,137.66,137.61,45.0]
[1719311503027,100.0,137.68,137.63,26.6]
[1719311503616,200.0,137.68,137.63,26.6]
[1719311504120,100.0,137.68,137.63,26.6]
[1719311504500,100.0,137.71,137.66,26.6]
[1719311505127,100.0,137.7,137.66,26.6]
[1719311505303,100.0,137.69,137.66,26.6]
[1719311505510,100.0,137.69,137.63,15.2065]
[1719311505511,100.0,137.67,137.63,15.2065]
[1719311508108,100.0,137.69,137.63,15.2065]
[1719311508429,100.0,137.69,137.65,26.6]
[1719311510243,100.0,137.66,137.65,26.6]
[1719311517831,100.0,137.64,137.62,26.6]
[1719311518008,100.0,137.61,137.57,26.6]
[1719311518209,100.0,137.63,137.57,26.6]
[1719311518437,100.0,137.63,137.56,21.928]
[1719311518611,100.0,137.63,137.6,26.6]
[1719311520729,100.0,137.65,137.6,26.6]
[1719311520931,100.0,137.67,137.63,26.6]
[1719311521512,200.0,137.68,137.63,26.6]
[1719311522529,100.0,137.64,137.63,26.6]
[1719311523543,100.0,137.62,137.61,26.6]
[1719311523720,100.0,137.64,137.61,26.6]
[1719311529216,100.0,137.67,137.61,26.6]
[1719311529432,100.0,137.67,137.64,26.6]
[1719311529634,100.0,137.7,137.64,26.6]
[1719311529830,100.0,137.71,137.67,26.6]
[1719311530222,100.0,137.72,137.67,26.6]
[1719311530735,100.0,137.74,137.67,26.6]
[1719311530942,100.0,137.74,137.68,45.0]
[1719311531147,200.0,137.74,137.68,45.0]
[1719311531326,115.8887,137.76,137.7,26.6]
[1719311531532,100.0,137.75,137.7,26.6]
[1719311531738,100.0,137.71,137.7,26.6]
[1719311531946,100.0,137.69,137.68,26.6]
[1719311533026,100.0,137.71,137.68,26.6]
[1719311533751,100.0,137.73,137.68,26.6]
[1719311534250,100.0,137.75,137.69,45.0]
[1719311534426,200.0,137.75,137.69,45.0]
[1719311534626,100.0,137.7,137.68,26.6]
[1719311537337,100.0,137.68,137.65,26.6]
[1719311539255,200.0,137.75,137.66,45.0]
[1719311539544,200.0,137.75,137.7,26.6]
[1719311540354,100.0,137.73,137.7,26.6]
[1719311541248,200.0,137.73,137.7,26.6]
[1719311541650,100.0,137.73,137.7,26.6]
[1719311548863,100.0,137.71,137.7,26.6]
[1719311549045,100.0,137.69,137.68,26.6]
[1719311555250,100.0,137.67,137.64,15.3916]
[1719311555442,100.0,137.69,137.64,26.6]
[1719311555443,100.0,137.65,137.64,26.6]
[1719311560351,100.0,137.67,137.64,26.6]
[1719311560873,100.0,137.69,137.64,26.6]
[1719311561070,100.0,137.65,137.64,26.6]
[1719311562256,200.0,137.68,137.64,26.6]
[1719311562460,100.0,137.68,137.64,26.6]
[1719311562660,200.0,137.68,137.64,26.6]
[1719311563063,100.0,137.68,137.64,26.6]
[1719311563574,100.0,137.66,137.64,26.6]
[1719311563761,200.0,137.66,137.64,26.6]
[1719311563967,100.0,137.66,137.64,26.6]
[1719311566151,100.0,137.68,137.64,26.6]
[1719311566471,100.0,137.68,137.62,6.3116]
[1719311566472,200.0,137.7,137.67,26.6]
[1719311566649,100.0,137.7,137.67,26.6]
[1719311568450,100.0,137.72,137.67,26.6]
[1719311568660,100.0,137.75,137.7,26.6]
[1719311568858,200.0,137.76,137.7,26.6]